lending/lending_fUSD_20240509
["ID","MTS","AMOUNT","RATE_DAILY","PERIOD"]
[326741613,1715293864763,-500.0,0.00030503,5]
[326741614,1715293864772,-648.69,0.00030503,5]
[326741615,1715293864781,-1106.98,0.00030503,5]
[326741616,1715293864790,-500.0,0.00030503,5]
[326741617,1715293864800,-943.13,0.00030503,5]
[326741618,1715293864809,-1178.64,0.00030503,5]
[326741619,1715293864819,-1565.49,0.00030503,5]
[326741620,1715293864828,-500.0,0.00030503,5]
[326741621,1715293864837,-500.0,0.00030503,5]
[326741622,1715293864847,-1278.02,0.00030503,5]
[326741623,1715293864857,-1202.47,0.00030503,5]
[326741624,1715293864866,-500.0,0.00030503,5]
[326741625,1715293864876,-500.0,0.00030503,5]
[326741626,1715293864885,-978.37,0.00030503,5]
[326741627,1715293864894,-986.65,0.00030503,5]
[326741628,1715293864903,-746.24,0.00030503,5]
[326741629,1715293864913,-500.0,0.00030503,5]
[326741630,1715293864922,-500.0,0.00030503,5]
[326741631,1715293864932,-1112.56,0.00030503,5]
[326741632,1715293864941,-500.0,0.00030503,5]
[326741633,1715293864951,-508.03,0.00030503,5]
[326741634,1715293864960,-500.0,0.00030503,5]
[326741635,1715293864981,-500.0,0.00030503,5]
[326741636,1715293864990,-744.43,0.00030503,5]
[326741637,1715293864999,-500.0,0.00030503,5]
[326741638,1715293865011,-500.0,0.00030503,5]
[326741639,1715293865020,-1472.4,0.00030503,5]
[326741640,1715293865030,-500.0,0.00030503,5]
[326741641,1715293865039,-500.0,0.00030503,5]
[326741642,1715293865049,-500.0,0.00030503,5]
[326741643,1715293865059,-644.82139074,0.00030503,5]
[326741644,1715293865069,-1380.59,0.00030503,5]
[326741645,1715293865078,-684.46,0.00030503,5]
[326741646,1715293865087,-1164.13,0.00030503,5]
[326741647,1715293865097,-780.53,0.00030503,5]
[326741648,1715293865107,-2656.96,0.00030503,5]
[326741649,1715293865116,-500.0,0.00030503,5]
[326741650,1715293865125,-1758.11,0.00030503,5]
[326741651,1715293865135,-1101.18,0.00030503,5]
[326741652,1715293865144,-674.64,0.00030503,5]
[326741653,1715293865153,-385.48174594,0.00030503,5]
[326741654,1715293865162,-500.0,0.00030503,5]
[326741655,1715293865172,-500.0,0.00030503,5]
[326741656,1715293865183,-500.0,0.00030503,5]
[326741657,1715293865191,-500.0,0.00030503,5]
[326741658,1715293865201,-4151.77,0.00030503,5]
[326741659,1715293865211,-500.0,0.00030503,5]
[326741660,1715293865222,-1510.81,0.00030503,5]
[326741661,1715293865232,-500.0,0.00030503,5]
[326741662,1715293865241,-1447.77,0.00030503,5]
[326741663,1715293865251,-500.0,0.00030503,5]
[326741664,1715293865264,-23420.42,0.00030503,5]
[326741665,1715293865274,-500.0,0.00030503,5]
[326741666,1715293865284,-500.0,0.00030503,5]
[326741667,1715293865294,-1626.84,0.00030503,5]
[326741668,1715293865303,-2637.33,0.00030503,5]
[326741669,1715293865312,-3399.74,0.00030503,5]
[326741670,1715293865322,-1106.93,0.00030503,5]
[326741671,1715293865331,-2604.42,0.00030503,5]
[326741672,1715293865341,-2868.31,0.00030503,5]
[326741673,1715293865350,-500.0,0.00030503,5]
[326741674,1715293865360,-500.0,0.00030503,5]
[326741675,1715293865370,-1497.05,0.00030503,5]
[326741676,1715293865379,-933.56,0.00030503,5]
[326741677,1715293865389,-500.0,0.00030503,5]
[326741678,1715293865398,-500.0,0.00030503,5]
[326741679,1715293865408,-3731.73,0.00030503,5]
[326741680,1715293865417,-1208.5,0.00030503,5]
[326741681,1715293865426,-500.0,0.00030503,5]
[326741682,1715293865437,-500.0,0.00030503,5]
[326741683,1715293865446,-500.0,0.00030503,5]
[326741684,1715293865456,-1695.74,0.00030503,5]
[326741685,1715293865467,-500.0,0.00030503,5]
[326741686,1715293865476,-500.0,0.00030503,5]
[326741687,1715293865486,-500.0,0.00030503,5]
[326741688,1715293865495,-151.0,0.00030503,7]
[326741689,1715293865504,-500.0,0.00030503,5]
[326741690,1715293865514,-151.0,0.00030503,7]
[326741691,1715293865523,-2132.23,0.00030503,5]
[326741692,1715293865533,-500.0,0.00030503,5]
[326741693,1715293865542,-505.10124003,0.00030503,5]
[326741694,1715293865552,-151.0,0.00030503,7]
[326741695,1715293865561,-500.0,0.00030503,5]
[326741696,1715293865571,-1688.79,0.00030503,5]
[326741697,1715293865580,-500.0,0.00030503,5]
[326741698,1715293865589,-500.0,0.00030503,5]
[326741699,1715293865599,-516.7,0.00030503,5]
[326741700,1715293865608,-539.73,0.00030503,5]
[326741701,1715293865618,-151.0,0.00030503,7]
[326741702,1715293865627,-2764.89,0.00030503,5]
[326741703,1715293865637,-500.0,0.00030503,5]
[326741704,1715293865646,-727.15,0.00030503,5]
[326741705,1715293865655,-500.0,0.00030503,5]
[326741706,1715293865665,-838.33,0.00030503,5]
[326741707,1715293865674,-151.0,0.00030503,7]
[326741708,1715293865683,-151.0,0.00030503,7]
[326741709,1715293865693,-1340.8,0.00030503,5]
[326741710,1715293865702,-500.0,0.00030503,5]
[326741711,1715293865714,-151.0,0.00030503,7]
[326741712,1715293865723,-1235.15,0.00030503,5]
[326741713,1715293865732,-151.0,0.00030503,7]
[326741714,1715293865743,-982.67,0.00030503,5]
[326741715,1715293865753,-500.0,0.00030503,5]
[326741716,1715293865763,-900.94,0.00030503,5]
[326741717,1715293865772,-500.0,0.00030503,5]
[326741718,1715293865781,-500.0,0.00030503,5]
[326741719,1715293865791,-1460.11,0.00030503,5]
[326741720,1715293865800,-500.0,0.00030503,5]
[326741721,1715293865810,-1218.25,0.00030503,5]
[326741722,1715293865821,-813.11,0.00030503,5]
[326741723,1715293865831,-1816.8,0.00030503,5]
[326741724,1715293865842,-1815.69,0.00030503,5]
[326741725,1715293865852,-849.77,0.00030503,5]
[326741726,1715293865863,-500.0,0.00030503,5]
[326741727,1715293865873,-1867.61,0.00030503,5]
[326741728,1715293865883,-500.0,0.00030503,5]
[326741729,1715293865894,-1077.6,0.00030503,5]
[326741730,1715293865903,-579.35,0.00030503,5]
[326741731,1715293865913,-500.0,0.00030503,5]
[326741732,1715293865924,-964.29,0.00030503,5]
[326741733,1715293865934,-1492.12,0.00030503,5]
[326741734,1715293865944,-1399.84,0.00030503,5]
[326741735,1715293865953,-500.0,0.00030503,5]
[326741736,1715293865966,-1309.82,0.00030503,5]
[326741737,1715293865978,-1543.18,0.00030503,5]
[326741738,1715293865989,-500.0,0.00030503,5]
[326741739,1715293865999,-1351.27,0.00030503,5]
[326741740,1715293866011,-500.0,0.00030503,5]
[326741741,1715293866023,-500.0,0.00030503,5]
[326741742,1715293866034,-993.64,0.00030503,5]
[326741743,1715293866045,-906.47,0.00030503,2]
[326741744,1715293866058,-500.0,0.00030503,5]
[326741745,1715293866069,-500.0,0.00030503,5]
[326741746,1715293866080,-1353.79,0.00030503,5]
[326741747,1715293866091,-500.0,0.00030503,5]
[326741748,1715293866101,-963.5,0.00030503,5]
[326741749,1715293866111,-967.72822901,0.00030544,2]
[326741750,1715293866121,-500.0,0.00030684,6]
[326741751,1715293866132,-776.52,0.00030684,6]
[326741752,1715293866142,-514.42005445,0.00030684,6]
[326741753,1715293866152,-500.0,0.00030684,6]
[326741754,1715293866163,-500.0,0.00030684,6]
[326741755,1715293866174,-550.06,0.00030684,6]
[326741756,1715293866184,-500.0,0.00030684,6]
[326741757,1715293866194,-722.94,0.00030684,6]
[326741758,1715293866204,-851.14,0.00030684,6]
[326741759,1715293866217,-500.0,0.00030684,6]
[326741760,1715293866227,-1051.73,0.00030684,6]
[326741761,1715293866237,-779.61,0.00030684,6]
[326741762,1715293866247,-520.21487393,0.00030684,6]
[326741763,1715293866257,-500.0,0.00030684,6]
[326741764,1715293866267,-764.66,0.00030684,6]
[326741765,1715293866277,-615.83417945,0.00030684,6]
[326741766,1715293866287,-500.0,0.00030684,6]
[326741767,1715293866297,-500.0,0.00030684,6]
[326741768,1715293866308,-500.0,0.00030684,6]
[326741769,1715293866317,-500.0,0.00030684,2]
[326741770,1715293866327,-500.0,0.00030684,6]
[326741771,1715293866338,-500.0,0.00030684,6]
[326741772,1715293866348,-1054.67,0.00030684,6]
[326741773,1715293866358,-500.0,0.00030684,6]
[326741774,1715293866368,-580.78,0.00030684,6]
[326741775,1715293866378,-663.41,0.00030684,6]
[326741776,1715293866389,-573.15,0.00030684,6]
[326741777,1715293866399,-500.0,0.00030684,6]
[326741778,1715293866409,-500.0,0.00030684,6]
[326741779,1715293866419,-531.77,0.00030684,6]
[326741780,1715293866430,-500.0,0.00030684,6]
[326741781,1715293866440,-781.07,0.00030684,6]
[326741782,1715293866450,-500.0,0.00030684,6]
[326741783,1715293866460,-500.0,0.00030684,6]
[326741784,1715293866472,-500.0,0.00030684,6]
[326741785,1715293866482,-500.0,0.00030684,6]
[326741786,1715293866491,-500.0,0.00030684,6]
[326741787,1715293866501,-500.0,0.00030684,6]
[326741788,1715293866511,-613.88,0.00030684,6]
[326741789,1715293866521,-500.0,0.00030684,6]
[326741790,1715293866531,-500.0,0.00030684,6]
[326741791,1715293866541,-890.68,0.00030684,6]
[326741792,1715293866552,-500.0,0.00030684,6]
[326741793,1715293866562,-1694.75,0.00030684,6]
[326741794,1715293866572,-1091.31,0.00030684,6]
[326741795,1715293866582,-1040.68,0.00030684,6]
[326741796,1715293866592,-1788.86,0.00030684,6]
[326741797,1715293866602,-500.0,0.00030684,6]
[326741798,1715293866612,-916.73,0.00030684,6]
[326741799,1715293866622,-1301.4,0.00030684,6]
[326741800,1715293866633,-591.82,0.00030684,6]
[326741801,1715293866643,-1721.76,0.00030684,6]
[326741802,1715293866653,-910.65,0.00030684,6]
[326741803,1715293866663,-2583.35,0.00030684,6]
[326741804,1715293866673,-1555.37,0.00030684,6]
[326741805,1715293866684,-1342.3,0.00030684,6]
[326741806,1715293866694,-2830.82517201,0.00030726,2]
[326741807,1715293866704,-2000.0,0.00030742,2]
[326741808,1715293866717,-200.0,0.00030742,2]
[326741809,1715293866727,-3382.64,0.00030774,6]
[326741810,1715293866737,-2718.02,0.00030774,6]
[326741811,1715293866747,-506.2,0.00030774,6]
[326741812,1715293866758,-891.39,0.00030774,6]
[326741813,1715293866768,-1569.4,0.00030774,6]
[326741814,1715293866777,-500.0,0.00030774,6]
[326741815,1715293866787,-4759.82,0.00030774,6]
[326741816,1715293866797,-2991.92,0.00030774,6]
[326741817,1715293866807,-2310.69,0.00030774,6]
[326741818,1715293866818,-9157.79,0.00030774,6]
[326741819,1715293866828,-11668.31,0.00030774,6]
[326741820,1715293866838,-2492.19,0.00030774,6]
[326741821,1715293866847,-4663.6,0.00030774,6]
[326741822,1715293866858,-2156.52,0.00030774,6]
[326741823,1715293866868,-9574.79,0.00030774,6]
[326741824,1715293866878,-3740.02,0.00030774,6]
[326741825,1715293866887,-5897.06,0.00030774,6]
[326741826,1715293866897,-1639.73561945,0.00030774,6]
[326741827,1715293867794,-2786.25438055,0.00030774,6]
[326741828,1715293867804,-3760.22,0.00030774,6]
[326741829,1715293867813,-1753.74,0.00030774,6]
[326741830,1715293867824,-649.75,0.00030774,6]
[326741831,1715293867834,-500.0,0.00030774,6]
[326741832,1715293867844,-938.48,0.00030774,6]
[326741833,1715293867853,-1614.47,0.00030774,6]
[326741834,1715293867863,-3432.65,0.00030774,6]
[326741835,1715293867873,-555.71,0.00030774,6]
[326741836,1715293867882,-4822.78,0.00030774,6]
[326741837,1715293867892,-640.14,0.00030774,6]
[326741838,1715293867901,-660.29,0.00030774,6]
[326741839,1715293867910,-2336.48,0.00030774,6]
[326741840,1715293867920,-2322.71,0.00030775,6]
[326741841,1715293867929,-324.57889915,0.00030775,6]
[326741842,1715293867939,-666.9,0.00030775,6]
[326741843,1715293867948,-1380.3,0.00030775,6]
[326741844,1715293867957,-1318.35,0.00030775,2]
[326741845,1715293867970,-573.49,0.00030775,6]
[326741846,1715293867980,-500.0,0.00030775,6]
[326741847,1715293867989,-1287.6,0.00030775,6]
[326741848,1715293867999,-1429.91,0.00030775,6]
[326741849,1715293868009,-500.0,0.00030775,6]
[326741850,1715293868019,-2570.93,0.00030775,6]
[326741851,1715293868029,-2902.44,0.00030775,6]
[326741852,1715293868039,-1918.92,0.00030775,6]
[326741853,1715293868051,-1432.19,0.00030775,6]
[326741854,1715293868061,-500.0,0.00030775,6]
[326741855,1715293868070,-1058.21,0.00030775,6]
[326741856,1715293868079,-2223.5,0.00030775,6]
[326741857,1715293868089,-2656.28,0.00030775,6]
[326741858,1715293868098,-500.0,0.00030775,6]
[326741859,1715293868107,-1791.98,0.00030775,6]
[326741860,1715293868117,-807.18,0.00030775,6]
[326741861,1715293868126,-835.57,0.00030775,6]
[326741862,1715293868136,-3374.95,0.00030775,6]
[326741863,1715293868145,-500.0,0.00030775,2]
[326741864,1715293868154,-500.0,0.00030775,6]
[326741865,1715293868163,-915.44,0.00030775,6]
[326741866,1715293868172,-500.0,0.00030775,6]
[326741867,1715293868182,-500.0,0.00030775,6]
[326741868,1715293868191,-771.2,0.00030775,6]
[326741869,1715293868200,-500.0,0.00030775,6]
[326741870,1715293868209,-2482.76,0.00030775,6]
[326741871,1715293868220,-3576.03,0.00030775,6]
[326741872,1715293868229,-509.07946184,0.00030775,6]
[326741873,1715293868239,-1464.98,0.00030775,6]
[326741874,1715293868248,-500.0,0.00030775,6]
[326741875,1715293868258,-545.66,0.00030775,6]
[326741876,1715293868267,-1225.83,0.00030775,6]
[326741877,1715293868276,-2672.39,0.00030775,6]
[326741878,1715293868285,-500.0,0.00030775,6]
[326741879,1715293868294,-176.01431121,0.00030775,6]
[326741880,1715293868303,-1403.78,0.00030775,6]
[326741881,1715293868313,-151.0,0.00030775,7]
[326741882,1715293868322,-500.0,0.00030775,6]
[326741883,1715293868331,-500.0,0.00030775,6]
[326741884,1715293868341,-1578.76,0.00030775,6]
[326741885,1715293868350,-662.71,0.00030775,6]
[326741886,1715293868359,-500.0,0.00030775,6]
[326741887,1715293868368,-1677.39,0.00030775,6]
[326741888,1715293868377,-574.84,0.00030775,6]
[326741889,1715293868386,-808.67,0.00030775,6]
[326741890,1715293868395,-541.81,0.00030775,6]
[326741891,1715293868405,-2920.81,0.00030775,6]
[326741892,1715293868414,-151.0,0.00030775,7]
[326741893,1715293868423,-500.0,0.00030775,6]
[326741894,1715293868432,-2196.3,0.00030775,6]
[326741895,1715293868441,-500.0,0.00030775,6]
[326741896,1715293868450,-500.0,0.00030775,6]
[326741897,1715293868460,-905.04,0.00030775,6]
[326741898,1715293868470,-809.54,0.00030775,6]
[326741899,1715293868479,-500.0,0.00030775,6]
[326741900,1715293868489,-3057.03,0.00030775,6]
[326741901,1715293868498,-2013.6,0.00030775,6]
[326741902,1715293868508,-207.103829,0.00030775,7]
[326741903,1715293868517,-591.29,0.00030775,6]
[326741904,1715293868526,-500.0,0.00030775,6]
[326741905,1715293868536,-2762.92,0.00030775,6]
[326741906,1715293868545,-500.0,0.00030775,6]
[326741907,1715293868555,-151.0,0.00030775,7]
[326741908,1715293868564,-2292.66,0.00030775,6]
[326741909,1715293868573,-151.0,0.00030775,7]
[326741910,1715293868583,-3594.74,0.00030775,6]
[326741911,1715293868592,-818.82,0.00030775,6]
[326741912,1715293868601,-165.66100614,0.00030775,6]
[326741913,1715293868614,-435.02899386,0.00030775,6]
[326741914,1715293868623,-1366.43041613,0.00030775,6]
[326741915,1715293868634,-770.6560004,0.00030775,6]
[326741916,1715293868645,-600.0,0.00030775,6]
[326741917,1715293868656,-532.00689083,0.00030775,6]
[326741918,1715293868668,-848.16669264,0.00030775,6]
[326741919,1715293868677,-918.87,0.00030775,6]
[326741920,1715293868687,-2628.7186688,0.00030775,6]
[326741921,1715293868698,-2313.1813312,0.00030775,6]
[326741922,1715293868707,-2336.77,0.00030775,6]
[326741923,1715293868718,-2636.19,0.00030775,6]
[326741924,1715293868727,-2969.29,0.00030775,6]
[326741925,1715293868736,-500.0,0.00030775,6]
[326741926,1715293868746,-500.0,0.00030775,6]
[326741927,1715293868755,-151.0,0.00030775,7]
[326741928,1715293868764,-1085.89,0.00030775,6]
[326741929,1715293868774,-3231.86,0.00030775,6]
[326741930,1715293868783,-151.0,0.00030775,7]
[326741931,1715293868793,-151.0,0.00030775,7]
[326741932,1715293868802,-1551.56,0.00030775,6]
[326741933,1715293868812,-151.0,0.00030775,7]
[326741934,1715293868821,-500.0,0.00030775,6]
[326741935,1715293868830,-224.2586688,0.00030775,6]
[326741936,1715293869478,-823.0,0.0003,120]
[326741937,1715293869488,-500.0,0.00030227,5]
[326741938,1715293869497,-500.0,0.00030228,6]
[326741939,1715293869507,-171.40622059,0.00030228,7]
[326741940,1715293869517,-500.0,0.00030322,4]
[326741941,1715293869527,-411.93,0.00030322,4]
[326741942,1715293869538,-652.38142,0.00030502,7]
[326741943,1715293869547,-208.6,0.00030519,15]
[326741944,1715293869557,-500.0,0.00030774,6]
[326741945,1715293869567,-743.72,0.00030774,6]
[326741946,1715293869577,-275.7413312,0.00030775,6]
[326741947,1715293869586,-151.0,0.00030775,7]
[326741948,1715293869595,-500.0,0.00030775,6]
[326741949,1715293869605,-500.0,0.00030775,6]
[326741950,1715293869614,-151.0,0.00030775,7]
[326741951,1715293869623,-151.0,0.00030775,7]
[326741952,1715293869634,-843.2,0.00030775,6]
[326741953,1715293869643,-151.0,0.00030775,7]
[326741954,1715293869652,-2721.92,0.00030775,6]
[326741955,1715293869662,-2658.63,0.00030775,6]
[326741956,1715293869672,-151.0,0.00030775,7]
[326741957,1715293869681,-500.0,0.00030775,6]
[326741958,1715293869691,-1053.15,0.00030775,6]
[326741959,1715293869701,-6806.75,0.00030775,6]
[326741960,1715293869710,-500.0,0.00030775,6]
[326741961,1715293869721,-500.0,0.00030775,6]
[326741962,1715293869731,-151.0,0.00030775,7]
[326741963,1715293869740,-18139.29,0.00030775,6]
[326741964,1715293869750,-898.61,0.00030775,6]
[326741965,1715293869760,-2598.41,0.00030775,6]
[326741966,1715293869769,-151.0,0.00030775,7]
[326741967,1715293869779,-2428.11,0.00030775,6]
[326741968,1715293869789,-151.0,0.00030775,7]
[326741969,1715293869799,-11836.3,0.00030775,6]
[326741970,1715293869808,-1353.23,0.00030775,6]
[326741971,1715293869828,-840.5,0.00030775,6]
[326741972,1715293869839,-8342.64,0.00030775,6]
[326741973,1715293869848,-3294.07,0.00030775,6]
[326741974,1715293869859,-2637.37,0.00030775,6]
[326741975,1715293869868,-151.0,0.00030775,7]
[326741976,1715293869878,-151.0,0.00030775,7]
[326741977,1715293869888,-500.0,0.00030775,6]
[326741978,1715293869899,-1053.06,0.00030775,6]
[326741979,1715293870053,-151.0,0.00030775,7]
[326741980,1715293870064,-151.0,0.00030775,7]
[326741981,1715293870073,-3512.39,0.00030775,6]
[326741982,1715293870083,-869.73,0.00030775,6]
[326741983,1715293870092,-3807.57,0.00030775,6]
[326741984,1715293870102,-44896.3,0.00030775,6]
[326741985,1715293870111,-5936.21,0.00030775,6]
[326741986,1715293870122,-1095.83,0.00030775,6]
[326741987,1715293870131,-1860.31,0.00030775,6]
[326741988,1715293870140,-151.0,0.00030775,7]
[326741989,1715293870150,-4252.97,0.00030775,6]
[326741990,1715293870160,-870.98,0.00030775,6]
[326741991,1715293870170,-151.0,0.00030775,7]
[326741992,1715293870179,-4198.61,0.00030775,6]
[326741993,1715293870189,-845.0,0.00030775,6]
[326741994,1715293870198,-23875.49,0.00030775,6]
[326741995,1715293870207,-4526.22575608,0.00030775,6]
[326741996,1715293870222,-585.28715928,0.00030775,6]
[326741997,1715293870233,-975.50000002,0.00030775,6]
[326741998,1715293870244,-5850.52708462,0.00030775,6]
[326741999,1715293870253,-1337.6,0.00030775,6]
[326742000,1715293870262,-733.15,0.00030775,6]
[326742001,1715293870272,-15366.52900975,0.00030775,6]
[326742002,1715293870300,-500.0,0.00030229,4]
[326742003,1715293870309,-2248.24107835,0.00030775,6]
[326742004,1715293870320,-855.62630079,0.00030775,6]
[326742005,1715293870331,-352.72799642,0.00030775,6]
[326742006,1715293870342,-447.70564946,0.00030775,6]
[326742007,1715293870355,-752.78996523,0.00030775,6]
[326742008,1715293870364,-500.0,0.00030775,6]
[326742009,1715293870373,-2849.96,0.00030775,6]
[326742010,1715293870382,-2379.53171477,0.00030775,6]
[326742011,1715293870393,-1610.69828523,0.00030775,6]
[326742012,1715293870402,-17507.9603572,0.00030775,6]
[326742013,1715293870413,-1622.1000002,0.00030775,6]
[326742014,1715293870425,-908.61920816,0.00030775,6]
[326742015,1715293870436,-472.93999962,0.00030775,6]
[326742016,1715293870447,-1842.5000002,0.00030775,6]
[326742017,1715293870458,-623.46,0.00030775,6]
[326742018,1715293870471,-27141.91043462,0.00030775,6]
[326742019,1715293870480,-500.0,0.00030775,6]
[326742020,1715293870489,-3062.77,0.00030775,6]
[326742021,1715293870499,-2036.78,0.00030775,6]
[326742022,1715293870508,-500.0,0.00030775,6]
[326742023,1715293870517,-2905.36,0.00030775,6]
[326742024,1715293870526,-2700.8,0.00030775,6]
[326742025,1715293870535,-500.0,0.00030775,6]
[326742026,1715293870544,-2104.18,0.00030775,6]
[326742027,1715293870553,-4149.04,0.00030775,6]
[326742028,1715293870562,-151.0,0.00030775,7]
[326742029,1715293870571,-1963.79,0.00030775,6]
[326742030,1715293870580,-3390.72,0.00030775,6]
[326742031,1715293870589,-151.0,0.00030775,5]
[326742032,1715293870598,-500.0,0.00030775,6]
[326742033,1715293870608,-2319.31,0.00030775,6]
[326742034,1715293870617,-1904.08,0.00030775,6]
[326742035,1715293870626,-151.0,0.00030775,7]
[326742036,1715293870636,-1518.85,0.00030775,6]
[326742037,1715293870645,-207.07996,0.00030775,7]
[326742038,1715293870654,-6300.79,0.00030775,6]
[326742039,1715293870663,-151.0,0.00030775,7]
[326742040,1715293870673,-500.0,0.00030775,6]
[326742041,1715293870683,-207.07996,0.00030775,7]
[326742042,1715293870693,-500.0,0.00030775,6]
[326742043,1715293870703,-5553.25,0.00030775,6]
[326742044,1715293870712,-3658.49,0.00030775,6]
[326742045,1715293870722,-1083.01,0.00030775,6]
[326742046,1715293870732,-587.98,0.00030775,6]
[326742047,1715293870741,-1356.37,0.00030775,6]
[326742048,1715293870751,-3872.5,0.00030775,6]
[326742049,1715293870761,-3011.56,0.00030775,6]
[326742050,1715293870770,-151.0,0.00030775,7]
[326742051,1715293870779,-151.0,0.00030775,7]
[326742052,1715293870788,-151.0,0.00030775,7]
[326742053,1715293870798,-601.6,0.00030775,6]
[326742054,1715293870807,-2970.58,0.00030775,6]
[326742055,1715293870817,-500.0,0.00030775,6]
[326742056,1715293870827,-986.3,0.00030775,6]
[326742057,1715293870836,-6324.58,0.00030775,6]
[326742058,1715293870845,-151.0,0.00030775,7]
[326742059,1715293870853,-151.0,0.00030775,7]
[326742060,1715293870863,-4309.69,0.00030775,6]
[326742061,1715293870872,-500.0,0.00030775,6]
[326742062,1715293870881,-151.0,0.00030775,7]
[326742063,1715293870890,-1753.92,0.00030775,6]
[326742064,1715293870899,-652.38142,0.00030775,7]
[326742065,1715293870907,-1006.52,0.00030776,6]
[326742066,1715293870917,-500.0,0.00030776,6]
[326742067,1715293870926,-545.04,0.00030776,6]
[326742068,1715293870936,-500.0,0.00030776,6]
[326742069,1715293870946,-616.38,0.00030776,6]
[326742070,1715293870955,-500.0,0.00030776,6]
[326742071,1715293870965,-500.0,0.00030776,6]
[326742072,1715293870979,-959.35,0.00030776,6]
[326742073,1715293870988,-500.0,0.00030776,6]
[326742074,1715293870998,-500.0,0.00030776,6]
[326742075,1715293871007,-500.0,0.00030776,6]
[326742076,1715293871017,-500.0,0.00030776,6]
[326742077,1715293871027,-791.65,0.00030776,6]
[326742078,1715293871036,-500.0,0.00030776,6]
[326742079,1715293871046,-842.78,0.00030776,6]
[326742080,1715293871059,-1043.11,0.00030776,6]
[326742081,1715293871068,-500.0,0.00030776,6]
[326742082,1715293871078,-665.22,0.00030776,6]
[326742083,1715293871087,-500.0,0.00030776,6]
[326742084,1715293871096,-500.0,0.00030776,6]
[326742085,1715293871105,-619.87,0.00030776,6]
[326742086,1715293871114,-500.0,0.00030776,6]
[326742087,1715293871124,-858.83,0.00030776,6]
[326742088,1715293871134,-500.0,0.00030776,6]
[326742089,1715293871143,-645.54,0.00030776,6]
[326742090,1715293871153,-500.0,0.00030776,6]
[326742091,1715293871162,-607.66,0.00030776,6]
[326742092,1715293871171,-511.373483,0.00030776,6]
[326742093,1715293871181,-539.78213271,0.00030776,6]
[326742094,1715293871191,-500.0,0.00030776,6]
[326742095,1715293871199,-500.0,0.00030776,6]
[326742096,1715293871209,-500.0,0.00030776,6]
[326742097,1715293871222,-500.0,0.00030776,6]
[326742098,1715293871231,-500.0,0.00030776,6]
[326742099,1715293871241,-964.36,0.00030776,6]
[326742100,1715293871250,-500.0,0.00030776,6]
[326742101,1715293871259,-1000.0,0.00030776,2]
[326742102,1715293871268,-918.94,0.00030776,6]
[326742103,1715293871278,-500.0,0.00030776,6]
[326742104,1715293871288,-203.63874828,0.00030776,6]
[326742105,1715293871297,-500.0,0.00030776,6]
[326742106,1715293871306,-922.8,0.00030776,6]
[326742107,1715293871316,-624.79,0.00030776,6]
[326742108,1715293871327,-500.0,0.00030776,6]
[326742109,1715293871336,-500.0,0.00030776,6]
[326742110,1715293871345,-500.0,0.00030776,6]
[326742111,1715293871355,-500.0,0.00030776,6]
[326742112,1715293871365,-512.70167798,0.00030776,6]